bitfinex/quotes_ETHUSD_20250810
["timestamp","ask_amount","ask_price","bid_price","bid_amount"]
[1754838635411,37.81539637,4225.9,4225.6,0.04]
[1754838635602,40.65755619,4225.9,4225.6,0.04]
[1754838636232,40.18175619,4225.9,4225.6,0.04]
[1754838636540,41.34827894,4225.9,4225.6,0.04]
[1754838636696,41.34827894,4225.9,4224.6,0.04]
[1754838636697,4.73305566,4225.6,4224.6,0.04]
[1754838636901,2.91759239,4223.7,4223.6,0.04]
[1754838637255,45.36059239,4223.7,4223.6,0.04]
[1754838637739,45.36196512,4223.7,4223.6,0.04]
[1754838637939,45.36059239,4223.7,4223.6,0.04]
[1754838638297,45.36059239,4223.7,4222.6,0.04]
[1754838638298,0.55,4223.5,4222.6,0.04]
[1754838638637,0.55,4222.7,4222.6,0.04]
[1754838638820,37.309,4222.7,4222.6,0.9502]
[1754838639229,37.309,4222.7,4222.6,0.04]
[1754838639431,33.55,4222.7,4222.6,0.4716]
[1754838639743,2.9422,4222.7,4222.6,0.9502]
[1754838639924,5.683,4223.7,4222.6,0.9502]
[1754838640122,5.683,4223.7,4222.7,0.4786]
[1754838640123,33.762,4223.6,4222.7,0.4786]
[1754838640305,30.0,4223.5,4222.7,0.4786]
[1754838640501,4.313,4223.4,4222.6,0.04]
[1754838640730,0.1184,4222.7,4222.6,0.04]
[1754838640931,4.4324,4222.7,4222.6,0.04]
[1754838641115,3.764,4222.7,4222.6,3.02280916]
[1754838641323,3.764,4222.7,4222.6,3.32519008]
[1754838641504,5.683,4223.7,4223.4,2.36775983]
[1754838641840,5.683,4223.7,4223.5,2.98230451]
[1754838641841,3.765,4223.6,4223.5,2.98230451]
[1754838642145,3.765,4223.6,4223.5,2.36770451]
[1754838642299,3.765,4223.6,4223.5,2.48610451]
[1754838642503,3.765,4223.6,4223.5,1.21838958]
[1754838642702,3.765,4223.6,4222.8,2.3680519]
[1754838642703,3.8834,4223.6,4222.9,0.597]
[1754838643135,3.8834,4223.6,4223.0,2.36798484]
[1754838643554,3.8834,4223.6,4222.9,0.597]
[1754838643710,3.8834,4223.6,4223.1,2.36791918]
[1754838643909,3.8834,4223.6,4223.2,0.4786]
[1754838644152,0.55,4223.5,4222.9,0.1184]
[1754838644449,2.36792877,4223.1,4222.6,0.04]
[1754838644606,3.55,4222.9,4222.6,0.04]
[1754838644804,0.1184,4222.7,4222.6,0.04]
[1754838645044,30.6684,4222.7,4222.6,0.04]
[1754838645209,33.46905307,4222.7,4222.6,0.04]
[1754838645815,30.6684,4222.7,4222.6,0.04]
[1754838646319,30.1184,4222.7,4222.6,0.04]
[1754838646527,33.8944,4222.7,4222.6,0.04]
[1754838646730,34.4444,4222.7,4222.6,0.04]
[1754838647039,34.8769,4222.7,4222.6,0.04]
[1754838647241,34.4444,4222.7,4222.6,0.04]
[1754838648551,0.1184,4222.7,4222.6,0.04]
[1754838648840,3.779,4222.7,4222.6,0.8067]
[1754838649004,3.779,4222.7,4222.6,1.1361477]
[1754838649442,0.1184,4222.9,4222.6,0.8067]
[1754838649641,3.777,4222.7,4222.6,0.04]
[1754838649850,0.1184,4222.9,4222.7,0.7667]
[1754838650022,3.777,4222.8,4222.7,0.7667]
[1754838650204,3.777,4222.8,4222.6,0.04]
[1754838650409,3.777,4222.8,4222.6,0.8067]
[1754838650832,0.1184,4222.9,4222.7,0.7667]
[1754838651068,3.775,4222.8,4222.7,3.27085307]
[1754838651611,3.775,4222.8,4222.7,3.38925307]
[1754838652252,3.775,4222.8,4222.6,0.04]
[1754838652626,3.775,4222.8,4222.6,2.40819778]
[1754838652820,3.775,4222.8,4222.7,2.36815307]
[1754838653055,3.775,4222.8,4222.6,0.8067]
[1754838653359,3.775,4222.8,4222.7,3.13485307]
[1754838653658,3.775,4222.8,4222.7,3.71460206]
[1754838654154,3.775,4222.8,4222.6,0.1584]
[1754838654362,3.775,4222.8,4222.6,0.04]
[1754838655322,0.1184,4222.7,4222.6,0.04]
[1754838656310,3.8894,4222.7,4222.6,0.04]
[1754838657511,0.1184,4222.7,4222.6,0.04]
[1754838657740,3.77,4222.7,4222.6,2.40820916]
[1754838658093,5.685,4223.3,4222.6,1.29629752]
[1754838658294,3.768,4223.2,4222.6,0.9251]
[1754838658606,3.768,4223.2,4223.1,2.36792877]
[1754838658941,5.685,4223.3,4223.2,2.3678727]
[1754838659141,0.002,4223.6,4223.2,0.8851]
[1754838659342,0.002,4223.6,4223.5,2.36770451]
[1754838659581,0.002,4223.6,4223.5,2.94341662]
[1754838659782,3.77,4223.6,4223.5,3.06181662]
[1754838659992,3.769,4223.6,4223.5,3.82851662]
[1754838660284,0.002,4223.6,4223.5,3.96501662]
[1754838660665,0.002,4223.6,4223.5,3.82851662]
[1754838661391,0.002,4223.6,4223.5,3.06181662]
[1754838661697,0.002,4223.6,4223.5,3.82851662]
[1754838662247,0.002,4223.6,4223.5,0.1184]
[1754838662544,0.002,4223.6,4223.5,2.36770451]
[1754838662746,0.002,4223.6,4223.4,2.36775102]
[1754838663287,0.002,4223.6,4223.5,2.36770451]
[1754838665886,0.002,4223.6,4223.3,0.1184]
[1754838666592,0.002,4223.6,4223.5,2.36770451]
[1754838667383,0.002,4223.6,4223.3,2.48616073]
[1754838667561,0.002,4223.6,4223.4,2.36774143]
[1754838667753,0.002,4223.6,4223.5,2.36770451]
[1754838668582,0.002,4223.6,4223.4,2.36775901]
[1754838668776,0.002,4223.6,4223.5,2.36770451]
[1754838669558,3.762,4223.6,4223.5,2.36770451]
[1754838670073,3.76,4223.6,4223.5,2.85309418]
[1754838670253,0.002,4223.6,4223.5,2.85309418]
[1754838670453,3.759,4223.6,4223.5,2.85309418]
[1754838671452,3.759,4223.6,4223.5,2.36770451]
[1754838674987,3.759,4223.6,4223.3,0.1184]
[1754838674988,4.1898,4223.6,4223.3,0.1184]
[1754838675154,1.3251,4223.5,4223.1,2.36792353]
[1754838675357,1.2067,4223.4,4223.2,2.36787088]
[1754838675558,0.4308,4223.3,4223.0,2.36797249]
[1754838675861,1.2067,4223.3,4222.9,0.1184]
[1754838676054,0.1184,4223.5,4223.2,2.3678727]
[1754838676257,0.55,4223.4,4223.0,2.36798484]
[1754838676458,0.1184,4223.2,4223.0,2.36798484]
[1754838676763,4.1788,4223.1,4223.0,2.36798484]
[1754838678963,3.748,4223.1,4223.0,2.36798484]
[1754838679669,0.1184,4223.2,4223.1,2.36792877]
[1754838679889,0.4284,4223.1,4222.6,0.1584]
[1754838680189,3.743,4223.0,4222.9,2.36803762]
[1754838680359,0.55,4222.9,4222.6,0.04]
[1754838680559,0.6684,4222.7,4222.6,0.04]
[1754838680761,30.6684,4222.7,4222.6,0.04]
[1754838680956,32.39585303,4222.7,4222.6,0.04]
[1754838681154,34.38013622,4222.7,4222.6,0.04]
[1754838681582,33.86988319,4222.7,4222.6,0.04]
[1754838681786,39.74818095,4222.7,4222.6,0.04]
[1754838681977,40.10249978,4222.7,4222.6,0.04]
[1754838682180,40.74022167,4222.7,4222.6,0.04]
[1754838683273,40.10249978,4222.7,4222.6,0.04]
[1754838683470,37.73434671,4222.7,4222.6,0.04]
[1754838683659,37.3814569,4222.7,4222.6,0.04]
[1754838683858,41.12602788,4222.7,4222.6,0.04]
[1754838685997,43.49518095,4222.7,4222.6,0.04]
[1754838686502,43.84880876,4222.7,4222.6,0.04]
[1754838686694,43.85024127,4222.7,4222.6,0.04]
[1754838687065,37.38146039,4222.7,4222.6,0.04]
[1754838687268,3.86283251,4222.7,4222.6,0.04]
[1754838687662,0.11983251,4222.7,4222.6,2.40820916]
[1754838687879,3.86383251,4222.7,4222.6,2.40820916]
[1754838688110,0.00143251,4222.7,4222.6,3.13890916]
[1754838688311,3.74643251,4222.7,4222.6,3.25730916]
[1754838688621,0.00143251,4222.7,4222.6,3.81997156]
[1754838688822,0.1184,4223.2,4223.1,2.36792877]
[1754838689036,0.1184,4223.2,4222.9,2.36804027]
[1754838689037,4.2908,4223.2,4222.7,2.36815307]
[1754838689186,0.1184,4222.8,4222.7,2.36815307]
[1754838689381,3.8624,4222.8,4222.7,2.36815307]
[1754838690122,3.8624,4222.8,4222.6,0.04]
[1754838690477,4.2908,4222.8,4222.6,0.04]
[1754838690681,30.9784,4222.7,4222.6,0.04]
[1754838692087,31.7672,4222.7,4222.6,0.04]
[1754838692291,30.9784,4222.7,4222.6,0.04]
[1754838692591,0.55,4222.7,4222.6,2.40820916]
[1754838693614,4.4124,4222.8,4222.7,2.36815307]
[1754838693910,3.8584,4222.8,4222.7,2.36815307]
[1754838694077,0.1184,4222.8,4222.7,2.84578929]
[1754838694284,3.738,4222.8,4222.7,2.84578929]
[1754838695018,0.55,4222.7,4222.6,0.04]
[1754838695363,31.8856,4222.7,4222.6,0.04]
[1754838695821,0.6684,4222.7,4222.6,0.04]
[1754838696022,4.4064,4222.7,4222.6,2.40820916]
[1754838696233,4.4064,4222.7,4222.6,0.04]
[1754838696433,4.8348,4222.7,4222.6,0.04]
[1754838696736,34.8348,4222.7,4222.6,0.04]
[1754838696932,37.94064068,4222.7,4222.6,0.04]
[1754838697134,35.6236,4222.7,4222.6,0.04]
[1754838700139,38.6236,4222.7,4222.6,0.04]
[1754838700335,39.13300305,4222.7,4222.6,0.04]
[1754838701109,41.50115612,4222.7,4222.6,0.04]
[1754838701743,41.7223034,4222.7,4222.6,0.04]
[1754838702514,39.35415033,4222.7,4222.6,0.04]
[1754838702821,41.7223034,4222.7,4222.6,0.04]
[1754838703552,41.85505222,4222.7,4222.6,0.04]
[1754838704243,40.12605237,4222.7,4222.6,0.04]
[1754838704632,40.12605237,4222.7,4221.2,2.20895469]
[1754838704633,3.55,4222.6,4221.2,2.20895469]
[1754838704834,3.55,4222.4,4222.1,2.36845692]
[1754838705146,0.6684,4222.2,4221.3,3.0995952]
[1754838705340,4.279,4222.1,4222.0,2.36854571]
[1754838705741,0.50998171,4222.6,4222.5,2.36826524]
[1754838705923,0.63772189,4223.4,4222.0,3.23569534]
[1754838706246,33.728,4223.3,4222.3,2.36837742]
[1754838706445,30.50992662,4223.2,4223.0,2.36797574]
[1754838706613,34.35732662,4223.1,4223.0,2.36797574]
[1754838706814,30.62832662,4223.1,4223.0,2.36797574]
[1754838707045,4.35632662,4223.1,4222.8,2.36804787]
[1754838707246,0.55,4222.9,4222.8,2.36808308]
[1754838707439,33.8464,4222.9,4222.8,2.36808308]
[1754838707820,34.3964,4222.9,4222.8,2.36808308]
[1754838708027,0.55,4222.8,4222.7,2.36814477]
[1754838708235,0.55,4222.8,4222.0,0.1184]
[1754838708236,0.6684,4222.6,4222.2,2.3683933]
[1754838708446,0.1184,4222.3,4221.7,2.48711402]
[1754838708748,0.1184,4222.3,4222.2,2.36843351]
[1754838708951,3.8454,4222.3,4222.2,2.36843351]
[1754838710821,0.1184,4222.3,4222.2,3.11763351]
[1754838711021,0.63972189,4223.6,4223.3,2.36780725]
[1754838711230,3.1184,4223.4,4222.8,2.36809699]
[1754838711431,0.1184,4222.9,4222.8,2.36809699]
[1754838711630,3.8424,4222.9,4222.8,2.36809699]
[1754838713520,0.1184,4222.9,4222.8,2.36809699]
[1754838713724,0.002,4223.6,4223.5,2.36770451]
[1754838714032,3.722,4223.6,4223.5,2.36770451]
[1754838719329,3.717,4223.6,4223.5,3.11690451]
[1754838720227,1e-08,4224.9,4223.6,2.36764845]
[1754838720533,1e-08,4224.9,4224.8,2.36697595]
[1754838720957,1e-08,4224.9,4224.8,2.50347595]
[1754838721139,1e-08,4224.9,4224.8,3.25267595]
[1754838721349,1e-08,4224.9,4224.8,2.36697595]
[1754838721729,1e-08,4224.9,4224.8,3.2763457]
[1754838721963,1e-08,4224.9,4224.8,3.81701608]
[1754838722170,1e-08,4224.9,4224.8,6.81701608]
[1754838723737,1e-08,4224.9,4224.8,6.93541608]
[1754838726585,1e-08,4224.9,4224.8,6.79891608]
[1754838727072,1e-08,4224.9,4224.8,10.65241608]
[1754838728267,1e-08,4224.9,4224.8,10.51591608]
[1754838728451,1e-08,4224.9,4224.8,6.04971608]
[1754838728655,1e-08,4224.9,4224.8,5.48537595]
[1754838729251,0.42780001,4224.9,4224.8,2.48537595]
[1754838729435,1e-08,4224.9,4224.8,2.48537595]
[1754838729838,0.42780001,4224.9,4224.8,2.48537595]
[1754838730148,1.21400001,4224.9,4224.8,2.36697595]
[1754838730375,1.33540001,4224.9,4224.8,2.36697595]
[1754838730576,1.21400001,4224.9,4224.8,2.36697595]
[1754838731637,1.21400001,4224.9,4224.7,2.36702634]
[1754838731872,1.3324,4224.8,4224.2,0.1184]
[1754838732036,1.3324,4224.8,4224.7,2.36703197]
[1754838733181,1.3324,4224.8,4224.2,0.1184]
[1754838733376,0.9046,4224.8,4224.2,0.1184]
[1754838733580,0.4278,4224.7,4224.6,2.367088]
[1754838733798,0.1184,4224.8,4224.7,2.36703197]
[1754838734166,0.5462,4224.8,4224.7,2.36703197]
[1754838734366,0.1184,4224.8,4224.7,2.36703197]
[1754838734574,0.5462,4224.8,4224.7,2.36703197]
[1754838734900,1.3324,4224.8,4224.7,2.36703197]
[1754838736807,0.5462,4224.8,4224.7,2.36703197]
[1754838737676,31.73202,4224.8,4222.8,3.56671]
[1754838738012,0.55,4224.6,4223.4,0.1184]
[1754838738207,0.55,4224.4,4224.1,2.36736589]
[1754838738381,0.42572,4224.8,4224.1,2.36736589]
[1754838738382,0.55,4224.2,4224.1,2.36736589]
[1754838738563,0.6684,4224.2,4224.0,2.36741555]
[1754838738768,1.3155,4224.1,4223.9,2.36748029]
[1754838739007,0.7601,4224.0,4223.4,0.1184]
[1754838739206,0.7601,4224.0,4223.9,2.36748029]
[1754838739702,1.1971,4224.0,4223.9,2.36748029]
[1754838740508,0.55,4223.9,4223.8,0.001]
[1754838740709,31.7471,4223.9,4223.8,0.001]
[1754838740913,31.7471,4223.9,4223.8,2.36853634]
[1754838741229,31.7471,4223.9,4223.8,0.001]
[1754838741622,31.7471,4223.9,4223.8,2.36853634]
[1754838741802,33.23249319,4223.9,4223.8,0.001]
[1754838742298,33.23249319,4223.9,4223.8,2.36853634]
[1754838743039,36.93449319,4223.9,4223.8,2.36853634]
[1754838743243,3.8194,4223.9,4223.8,2.36853634]
[1754838744833,4.2564,4223.9,4223.8,2.36853634]
[1754838745389,5.0165,4223.9,4223.8,2.36853634]
[1754838745712,3.8194,4223.9,4223.8,2.36853634]
[1754838745906,4.2564,4223.9,4223.8,2.36853634]
[1754838746217,3.8194,4223.9,4223.8,2.36853634]
[1754838746419,4.2564,4223.9,4223.8,2.36853634]
[1754838747023,35.5665,4223.9,4223.8,0.001]
[1754838747224,35.5665,4223.9,4223.8,2.36853634]
[1754838747421,35.5665,4223.9,4223.8,0.001]
[1754838747588,35.5665,4223.9,4223.8,2.36853634]
[1754838749290,3.8194,4223.9,4223.8,2.36853634]
[1754838749487,0.437,4224.7,4224.6,2.367088]
[1754838749736,5.11591,4224.7,4224.6,2.367088]
[1754838749907,0.55,4224.6,4223.9,0.1184]
[1754838750090,0.55,4224.6,4223.8,0.001]
[1754838750091,0.55,4224.4,4223.8,0.001]
[1754838750291,0.1184,4224.2,4224.1,2.36736819]
[1754838750491,1.3155,4224.2,4224.1,2.36736819]
[1754838750894,0.55,4224.1,4223.8,0.001]
[1754838751094,4.248,4224.0,4223.9,2.36748029]
[1754838751322,4.8034,4224.0,4223.9,2.36748029]
[1754838752409,5.5635,4224.0,4223.9,2.36748029]
[1754838753835,4.8034,4224.0,4223.9,2.36748029]
[1754838754397,4.3664,4224.0,4223.9,2.36748029]
[1754838754602,4.3634,4224.0,4223.9,2.36748029]
[1754838755425,3.695,4224.0,4223.9,2.36748029]
[1754838755612,0.00200001,4224.9,4224.8,2.36697595]
[1754838755836,35.01250001,4224.9,4224.6,2.36704204]
[1754838756002,0.55,4224.7,4224.2,2.36730463]
[1754838756340,0.1184,4224.5,4224.4,2.36720007]
[1754838756544,3.695,4224.5,4224.4,3.56564569]
[1754838756916,3.695,4224.5,4224.4,2.84064569]
[1754838759258,0.00200001,4224.9,4224.8,2.36697595]
[1754838759750,0.00200001,4224.9,4224.8,2.48537595]
[1754838759953,0.00200001,4224.9,4224.8,3.21037595]
[1754838760262,0.00200001,4224.9,4224.8,3.90461868]
[1754838760429,0.00200001,4224.9,4224.8,3.76811868]
[1754838760862,3.696,4225.4,4224.9,2.36691992]
[1754838761026,0.002,4225.4,4225.3,2.36669585]
[1754838761228,0.002,4225.4,4225.3,2.48509585]
[1754838761460,4.134,4225.4,4225.3,2.36669585]
[1754838762159,4.8941,4225.4,4225.3,2.36669585]
[1754838762463,4.134,4225.4,4225.3,2.36669585]
[1754838762664,3.696,4225.4,4225.3,2.36669585]
[1754838762828,4.133,4225.4,4225.3,2.36669585]
[1754838763234,0.439,4225.4,4225.3,2.36669585]
[1754838763661,4.132,4225.4,4225.3,2.36669585]
[1754838763968,3.695,4225.4,4225.3,2.36669585]
[1754838764164,4.132,4225.4,4225.3,2.36669585]
[1754838764363,4.8921,4225.4,4225.0,2.3668639]
[1754838764566,1.1971,4225.3,4225.2,2.11475248]
[1754838766642,0.55,4225.2,4224.9,0.1184]
[1754838766850,44.24,4225.1,4225.0,2.36681445]
[1754838767176,4.24,4225.1,4225.0,2.36681445]
[1754838767381,4.3584,4225.1,4225.0,2.36681445]
[1754838767579,4.79,4225.1,4225.0,2.36681445]
[1754838770456,5.5581,4225.1,4224.6,2.36703445]
[1754838770678,1.1997,4225.0,4224.9,2.36687666]
[1754838771284,0.4316,4225.0,4224.9,2.36687666]
[1754838771483,3.684,4225.1,4224.9,2.84026686]
[1754838771790,3.684,4225.1,4225.0,2.3668639]
[1754838772191,0.002,4225.4,4224.9,2.95866686]
[1754838772486,0.002,4225.4,4225.3,2.36669585]
[1754838772684,0.002,4225.4,4225.3,2.92975622]
[1754838775294,3.687,4225.4,4225.3,3.69035622]
[1754838775656,0.002,4225.4,4225.3,3.69035622]
[1754838776801,0.002,4225.4,4225.3,2.92975622]
[1754838778592,0.002,4225.4,4225.3,3.69035622]
[1754838778762,0.002,4225.4,4225.3,3.82685622]
[1754838779580,0.002,4225.4,4225.3,3.69035622]
[1754838779978,0.002,4225.4,4225.3,2.92975622]
[1754838781804,0.002,4225.4,4225.3,3.69035622]
[1754838781996,1e-08,4225.4,4225.3,3.69035622]
[1754838782198,1e-08,4225.4,4225.3,3.04815622]
[1754838782435,1e-08,4225.4,4225.3,3.80875622]
[1754838783133,0.002,4225.8,4225.7,2.36647182]
[1754838783337,0.002,4225.8,4225.7,2.721519]
[1754838783529,0.002,4225.8,4225.7,3.482119]
[1754838784039,1e-08,4225.8,4225.7,3.482119]
[1754838784402,1e-08,4226.3,4225.8,2.36641582]
[1754838784607,0.002,4227.2,4227.1,2.36568806]
[1754838785547,0.002,4227.2,4227.1,2.48408806]
[1754838786598,1e-08,4227.2,4227.1,2.48408806]
[1754838786916,1e-08,4227.2,4227.1,10.06518806]
[1754838787313,1e-08,4227.9,4227.8,2.36529637]
[1754838787636,1e-08,4227.9,4227.8,2.48369637]
[1754838788608,0.43160001,4227.9,4227.8,2.48369637]
[1754838788939,1e-08,4227.9,4227.8,2.48369637]
[1754838789255,1e-08,4227.9,4227.8,2.96860353]
[1754838789838,1e-08,4227.9,4227.8,6.65160353]
[1754838790437,1e-08,4227.9,4227.8,2.96860353]
[1754838790641,1e-08,4227.9,4227.8,6.16669637]
[1754838793957,1e-08,4227.9,4227.8,2.48369637]
[1754838793958,0.43160001,4227.9,4227.8,2.48369637]
[1754838794651,1e-08,4227.9,4227.8,2.48369637]
[1754838795247,0.43160001,4227.9,4227.8,2.48369637]
[1754838797198,1e-08,4227.9,4227.8,6.16569637]
[1754838797489,1e-08,4227.9,4227.8,7.01880353]
[1754838799289,1e-08,4227.9,4227.8,3.33680353]
[1754838799511,1.18010001,4227.9,4227.6,2.36540158]
[1754838799800,1.18010001,4227.9,4227.3,2.36557089]
[1754838799801,44.8611,4227.8,4227.2,0.1184]
[1754838799971,44.8611,4227.8,4227.6,2.36540826]
[1754838799972,1.1801,4227.7,4227.6,2.36540826]
[1754838802088,3.681,4227.8,4227.7,2.36535231]
[1754838802295,1e-08,4227.9,4227.8,2.36529637]
[1754838802525,0.46060001,4227.9,4227.8,2.36529637]
[1754838802822,1e-08,4227.9,4227.8,2.48369637]
[1754838802980,1e-08,4227.9,4227.8,2.72150986]
[1754838803724,1.18010001,4227.9,4227.8,2.48369637]
[1754838804299,1e-08,4227.9,4227.8,2.48369637]
[1754838804600,1.18010001,4227.9,4227.8,0.1184]
[1754838804912,10.0,4227.8,4227.7,2.36530801]
[1754838805111,31.1801,4227.8,4227.7,2.36530801]
[1754838805302,1.1801,4227.8,4227.7,2.36530801]
[1754838805701,1e-08,4227.9,4227.8,2.36529637]
[1754838805905,1e-08,4227.9,4227.8,2.48369637]
[1754838808316,1e-08,4227.9,4227.8,6.16469637]
[1754838810082,0.46060001,4227.9,4227.8,6.16469637]
[1754838810516,1e-08,4227.9,4227.8,6.16469637]
[1754838810923,1e-08,4227.9,4227.8,2.48369637]
[1754838811413,1e-08,4227.9,4227.8,6.16469637]
[1754838811595,1e-08,4227.9,4227.8,7.2542428]
[1754838812786,1e-08,4227.9,4227.8,3.5732428]
[1754838813015,1e-08,4227.9,4227.8,7.2542428]
[1754838813417,1e-08,4227.9,4227.8,3.5732428]
[1754838813716,1e-08,4227.9,4227.8,7.2542428]
[1754838814345,0.002,4228.4,4227.8,7.2542428]
[1754838814627,0.002,4229.0,4228.4,2.36496074]
[1754838814918,0.002,4229.0,4228.8,2.36473704]
[1754838815119,0.002,4229.0,4228.8,2.48313704]
[1754838816804,1e-08,4228.9,4228.8,2.50678441]
[1754838817002,1e-08,4228.9,4228.8,2.48313704]
[1754838819466,0.46060001,4228.9,4228.8,2.48313704]
[1754838820330,1e-08,4228.9,4228.8,2.48313704]
[1754838820738,1.18010001,4228.9,4228.8,2.48313704]
[1754838822016,1.18010001,4228.9,4228.8,2.36473704]
[1754838825535,31.18010001,4228.9,4228.8,2.36473704]
[1754838825713,31.29850001,4228.9,4228.8,2.36473704]
[1754838827140,31.29850001,4228.9,4228.6,2.36484535]
[1754838827343,31.7301,4228.8,4228.5,2.36486482]
[1754838827546,30.0,4228.7,4228.6,2.36482281]
[1754838827748,30.0,4228.7,4228.3,2.36497444]
[1754838828040,30.0,4228.7,4228.5,2.3648953]
[1754838828041,1.1695,4228.6,4228.5,2.3648953]
[1754838828243,1.1695,4228.6,4228.3,2.36497444]
[1754838828244,10.55,4228.5,4227.9,0.1184]
[1754838828545,44.8485,4228.4,4228.3,2.36501667]
[1754838828744,4.8485,4228.4,4228.3,2.36501667]
[1754838828915,4.9669,4228.4,4228.1,2.36512807]
[1754838829118,1.1695,4228.3,4228.1,2.36512807]
[1754838829318,30.0,4228.2,4228.0,2.36517245]
[1754838829640,1.2879,4228.1,4228.0,2.36518448]
[1754838830444,1.2879,4228.1,4227.8,0.001]
[1754838830644,0.1184,4228.1,4228.0,2.36518448]
[1754838830848,3.7974,4228.1,4228.0,2.36518448]
[1754838831055,33.7974,4228.1,4227.9,2.3651954]
[1754838831364,18.41106145,4228.0,4227.9,2.83839444]
[1754838831531,0.63762095,4229.1,4227.9,2.83839444]
[1754838831532,0.63762095,4230.0,4228.4,2.36495654]
[1754838831741,0.002,4230.2,4229.7,2.36423387]
[1754838831942,4.1467,4230.1,4229.7,2.36423387]
[1754838832657,3.703,4230.1,4229.7,2.36423387]
[1754838833157,0.002,4230.2,4229.7,2.36423387]
[1754838833333,3.702,4230.0,4229.7,2.36423387]
[1754838834832,4.1457,4230.0,4229.7,2.36423387]
[1754838835240,3.702,4230.0,4229.3,2.3644098]
[1754838835464,31.1695,4229.7,4229.1,2.36456929]
[1754838835653,1.1695,4229.7,4228.8,2.36473704]
[1754838835851,1.1695,4229.7,4229.5,2.36429692]
[1754838836052,1.1695,4229.6,4228.7,3.703]
[1754838836239,3.704,4229.5,4229.4,2.36440156]
[1754838836566,4.8735,4229.5,4229.4,2.36440156]
[1754838836971,4.8735,4229.5,4229.3,2.36443944]
[1754838837127,31.1695,4229.4,4229.1,2.3645638]
[1754838837334,4.19155,4229.5,4228.6,0.710203]
[1754838837335,0.55,4229.2,4228.6,0.710203]
[1754838837651,0.55,4229.0,4228.9,2.36463757]
[1754838838237,0.4437,4229.0,4228.2,2.3650726]
[1754838838641,0.4437,4229.0,4228.9,2.36468112]
[1754838838936,3.705,4229.7,4229.0,2.3646252]
[1754838839941,3.705,4229.7,4228.9,3.56536796]
[1754838840150,3.705,4229.7,4228.9,2.80116796]
[1754838840472,3.705,4229.7,4229.0,2.3646252]
[1754838841037,3.705,4229.7,4229.5,2.36429274]
[1754838841242,1.1695,4229.6,4229.5,2.36429274]
[1754838841680,0.4437,4229.6,4229.5,2.36429274]
[1754838842542,3.705,4229.7,4229.6,2.36428976]
[1754838842751,4.8745,4229.7,4229.4,2.36436582]
[1754838842950,4.8745,4229.7,4229.5,2.36432788]
[1754838842951,31.1695,4229.6,4229.5,2.36432788]
[1754838843154,1.1695,4229.6,4229.5,2.36432788]
[1754838843648,3.705,4229.7,4229.6,2.36428976]
[1754838843876,33.705,4229.7,4229.6,2.36428976]
[1754838844577,0.002,4229.8,4229.7,2.36423387]
[1754838844740,3.702,4229.8,4229.7,2.36423387]
[1754838845144,3.702,4229.8,4229.7,2.95548623]
[1754838846483,3.702,4229.8,4229.7,3.39198623]
[1754838846848,3.702,4229.8,4229.7,2.95548623]
[1754838853704,4.1457,4229.8,4229.7,2.48263387]
[1754838853899,3.702,4229.8,4229.7,2.48263387]
[1754838856393,3.702,4229.8,4229.7,2.91913387]
[1754838856581,0.002,4229.8,4229.7,3.68333387]
[1754838856781,0.002,4229.8,4229.7,2.48263387]
[1754838859771,0.002,4229.8,4229.7,10.77896001]
[1754838859978,0.002,4229.8,4229.7,12.04926001]
[1754838860379,1e-08,4230.3,4230.2,2.36395442]
[1754838860573,1e-08,4230.3,4230.2,6.16635442]
[1754838860789,1e-08,4230.3,4230.2,7.25579938]
[1754838861167,0.1184,4231.5,4230.2,10.25579938]
[1754838861367,0.54958446,4231.9,4230.8,6.23995295]
[1754838861597,0.04,4231.9,4230.8,9.92595295]
[1754838861900,0.04,4231.9,4231.8,2.36306063]
[1754838862271,0.04,4231.9,4231.8,2.48146063]
[1754838862470,0.4754,4231.9,4231.8,2.48146063]
[1754838862782,0.04,4231.9,4231.8,2.48146063]
[1754838862987,0.4754,4231.9,4231.8,0.1184]
[1754838863297,0.04,4231.9,4231.8,0.1184]
[1754838863495,0.04,4231.9,4231.8,2.48146063]
[1754838864079,0.04,4231.9,4231.8,3.37836069]
[1754838864280,0.04,4231.9,4231.8,2.48146063]
[1754838865080,0.04,4231.9,4231.8,3.75176063]
[1754838865676,0.04,4231.9,4231.8,2.48146063]
[1754838865907,0.04,4231.9,4231.8,0.1184]
[1754838866207,0.04,4231.9,4231.8,2.36306063]
[1754838866421,0.04,4231.9,4231.8,2.95408069]
[1754838867014,0.04,4231.9,4231.8,2.48146063]
[1754838867213,1.3056,4231.9,4231.2,3.696]
[1754838867412,1.3056,4231.9,4231.8,2.36306063]
[1754838867795,0.4754,4231.9,4231.8,2.36306063]
[1754838868411,0.04,4231.9,4231.8,2.36306063]
[1754838869615,0.4754,4231.9,4231.1,0.8339]
[1754838869819,0.4354,4231.8,4231.5,2.36321676]
[1754838870116,0.4354,4231.8,4230.5,0.8339]
[1754838870117,0.55,4231.6,4230.3,3.695]
[1754838870416,0.55,4231.6,4231.1,2.36344827]
[1754838870417,41.2656,4231.5,4231.1,2.36344827]
[1754838870617,0.55,4231.6,4231.1,2.36344827]
[1754838870618,0.55,4231.6,4231.1,2.3633995]
[1754838870804,1.2656,4231.4,4231.2,2.36337073]
[1754838871002,0.4354,4231.3,4230.5,2.36378678]
[1754838871204,0.4354,4231.3,4231.1,2.3634371]
[1754838871408,0.4354,4231.3,4231.2,2.36339572]
[1754838871609,1.2156,4231.3,4231.0,2.3634556]
[1754838871780,0.8302,4231.3,4231.2,2.36339572]
[1754838871984,0.8302,4231.3,4231.1,2.36344477]
[1754838872210,0.8302,4231.2,4230.3,3.0]